fUST/lending_fUST_20250901
["ID","MTS","AMOUNT","RATE_DAILY","PERIOD"]
[382710828,1756716647362,-480.0,0.00014246,2]
[382710829,1756716647372,-869.92,0.00014246,2]
[382710830,1756716647384,-497.09,0.00014246,2]
[382710831,1756716647393,-656.8,0.00014246,2]
[382710832,1756716647403,-689.01,0.00014246,2]
[382710833,1756716647413,-759.32,0.00014246,2]
[382710834,1756716647423,-481.67,0.00014246,2]
[382710835,1756716647432,-480.0,0.00014246,2]
[382710836,1756716647442,-929.41,0.00014246,2]
[382710837,1756716647451,-480.0,0.00014246,2]
[382710838,1756716647462,-480.0,0.00014246,2]
[382710839,1756716647471,-480.0,0.00014246,2]
[382710840,1756716647481,-480.0,0.00014246,2]
[382710841,1756716647490,-480.0,0.00014246,2]
[382710842,1756716647500,-480.0,0.00014246,2]
[382710843,1756716647509,-480.0,0.00014246,2]
[382710844,1756716647521,-480.0,0.00014246,2]
[382710845,1756716647531,-480.0,0.00014246,2]
[382710846,1756716647540,-497.03,0.00014246,2]
[382710847,1756716647550,-529.89,0.00014246,2]
[382710848,1756716647559,-684.67,0.00014246,2]
[382710849,1756716647569,-1598.91,0.00014246,2]
[382710850,1756716647579,-659.89,0.00014246,2]
[382710851,1756716647592,-480.0,0.00014246,2]
[382710852,1756716647602,-480.0,0.00014246,2]
[382710853,1756716647611,-2890.77,0.00014246,2]
[382710854,1756716647621,-480.0,0.00014246,2]
[382710855,1756716647631,-480.0,0.00014246,2]
[382710856,1756716647640,-480.0,0.00014246,2]
[382710857,1756716647650,-480.0,0.00014246,2]
[382710858,1756716647660,-1169.1,0.00014246,2]
[382710859,1756716647671,-480.0,0.00014246,2]
[382710860,1756716647681,-563.9,0.00014246,2]
[382710861,1756716647690,-548.99,0.00014246,2]
[382710862,1756716647700,-480.0,0.00014246,2]
[382710863,1756716647711,-480.0,0.00014246,2]
[382710864,1756716647722,-662.17,0.00014246,2]
[382710865,1756716647733,-514.59,0.00014246,2]
[382710866,1756716647743,-480.0,0.00014246,2]
[382710867,1756716647754,-480.0,0.00014246,2]
[382710868,1756716647764,-482.5,0.00014246,2]
[382710869,1756716647776,-658.22,0.00014246,2]
[382710870,1756716647785,-244.92250846,0.00014246,2]
[382710871,1756716647795,-4572.26,0.00014246,2]
[382710872,1756716647805,-480.0,0.00014246,2]
[382710873,1756716647815,-480.0,0.00014246,2]
[382710874,1756716647825,-486.2030445,0.00014246,2]
[382710875,1756716647836,-560.81,0.00014246,2]
[382710876,1756716647846,-610.36,0.00014246,2]
[382710877,1756716647856,-480.0,0.00014246,2]
[382710878,1756716647866,-480.0,0.00014246,2]
[382710879,1756716647876,-1626.51,0.00014246,2]
[382710880,1756716647887,-480.0,0.00014246,2]
[382710881,1756716647897,-480.0,0.00014246,2]
[382710882,1756716647907,-4027.15,0.00014246,2]
[382710883,1756716647917,-480.0,0.00014246,2]
[382710884,1756716647927,-480.0,0.00014246,2]
[382710885,1756716647937,-1082.22,0.00014246,2]
[382710886,1756716647947,-683.92,0.00014246,2]
[382710887,1756716647957,-480.0,0.00014246,2]
[382710888,1756716647967,-480.0,0.00014246,2]
[382710889,1756716647977,-1569.28,0.00014246,2]
[382710890,1756716647987,-1217.44,0.00014246,2]
[382710891,1756716647998,-480.0,0.00014246,2]
[382710892,1756716648007,-480.0,0.00014246,2]
[382710893,1756716648018,-480.0,0.00014246,2]
[382710894,1756716648027,-480.0,0.00014246,2]
[382710895,1756716648036,-799.99,0.00014246,2]
[382710896,1756716648045,-1362.84,0.00014246,2]
[382710897,1756716648055,-480.0,0.00014246,2]
[382710898,1756716648065,-480.0,0.00014246,2]
[382710899,1756716648075,-480.0,0.00014246,2]
[382710900,1756716648085,-480.0,0.00014246,2]
[382710901,1756716648094,-480.0,0.00014246,2]
[382710902,1756716648103,-543.08,0.00014246,2]
[382710903,1756716648113,-480.0,0.00014246,2]
[382710904,1756716648123,-4318.07,0.00014246,2]
[382710905,1756716648132,-480.0,0.00014246,2]
[382710906,1756716648142,-480.0,0.00014246,2]
[382710907,1756716648152,-568.4,0.00014246,2]
[382710908,1756716648162,-714.56,0.00014246,2]
[382710909,1756716648171,-480.0,0.00014246,2]
[382710910,1756716648181,-568.44,0.00014246,2]
[382710911,1756716648191,-480.0,0.00014246,2]
[382710912,1756716648201,-480.0,0.00014246,2]
[382710913,1756716648210,-480.0,0.00014246,2]
[382710914,1756716648220,-480.0,0.00014246,2]
[382710915,1756716648230,-480.0,0.00014246,2]
[382710916,1756716648240,-2617.51,0.00014246,2]
[382710917,1756716648250,-480.0,0.00014246,2]
[382710918,1756716648260,-480.0,0.00014246,2]
[382710919,1756716648270,-480.0,0.00014246,2]
[382710920,1756716648280,-480.0,0.00014246,2]
[382710921,1756716648290,-545.8,0.00014246,2]
[382710922,1756716648299,-480.0,0.00014246,2]
[382710923,1756716648309,-743.65,0.00014246,2]
[382710924,1756716648319,-437.79332908,0.00014246,2]
[382710925,1756716648328,-480.0,0.00014246,2]
[382710926,1756716648338,-480.0,0.00014246,2]
[382710927,1756716648347,-657.98,0.00014246,2]
[382710928,1756716648357,-480.0,0.00014246,2]
[382710929,1756716648366,-1225.89,0.00014246,2]
[382710930,1756716648376,-480.0,0.00014246,2]
[382710931,1756716648385,-142.92839783,0.00014246,2]
[382710932,1756716648976,-480.0,0.00013904,2]
[382710933,1756716648986,-480.0,0.00013904,2]
[382710934,1756716648996,-480.0,0.00014178,2]
[382710935,1756716649005,-337.07160217,0.00014246,2]
[382710936,1756716649015,-533.62,0.00014246,2]
[382710937,1756716649027,-480.0,0.00014246,2]
[382710938,1756716649037,-480.0,0.00014246,2]
[382710939,1756716649047,-1182.15,0.00014246,2]
[382710940,1756716649057,-702.58,0.00014246,2]
[382710941,1756716649066,-856.47,0.00014246,2]
[382710942,1756716649076,-480.0,0.00014246,2]
[382710943,1756716649086,-979.22,0.00014246,2]
[382710944,1756716649096,-741.56,0.00014246,2]
[382710945,1756716649106,-480.0,0.00014246,2]
[382710946,1756716649116,-480.0,0.00014246,2]
[382710947,1756716649125,-480.0,0.00014246,2]
[382710948,1756716649135,-480.0,0.00014246,2]
[382710949,1756716649145,-480.0,0.00014246,2]
[382710950,1756716649155,-1003.88,0.00014246,2]
[382710951,1756716649165,-573.85,0.00014246,2]
[382710952,1756716649176,-1437.5,0.00014246,2]
[382710953,1756716649185,-11.19888774,0.00014246,2]
[382710954,1756716650251,-3384.6877574,0.00010615,2]
[382710955,1756716650261,-482.32406535,0.00013698,2]
[382710956,1756716650272,-480.0,0.00013698,2]
[382710957,1756716650282,-480.0,0.00013698,2]
[382710958,1756716650291,-480.0,0.00013698,2]
[382710959,1756716650301,-480.0,0.00013904,2]
[382710960,1756716650311,-480.0,0.00013972,2]
[382710961,1756716650320,-480.0,0.00013972,2]
[382710962,1756716650330,-675.52111226,0.00014246,2]
[382710963,1756716650339,-480.0,0.00014246,2]
[382710964,1756716650348,-635.36,0.00014246,2]
[382710965,1756716650358,-611.31,0.00014246,2]
[382710966,1756716650369,-948.93,0.00014246,2]
[382710967,1756716650378,-480.0,0.00014246,2]
[382710968,1756716650387,-480.0,0.00014246,2]
[382710969,1756716650396,-480.0,0.00014246,2]
[382710970,1756716650406,-538.0,0.00014255,2]
[382710971,1756716650416,-538.0,0.00014255,2]
[382710972,1756716650426,-864.0,0.00014266,2]
[382710973,1756716650436,-664.34335366,0.00014277,2]
[382710974,1756716650448,-32.09664634,0.00014277,2]
[382710975,1756716650457,-480.0,0.00014277,2]
[382710976,1756716650468,-578.27072766,0.00014277,2]
[382710977,1756716650928,-1000.0,0.00010509,2]
[382710978,1756716650940,-851.492749,0.00010509,2]
[382710979,1756716650950,-480.0,0.00013698,2]
[382710980,1756716650960,-480.0,0.00013698,2]
[382710981,1756716650970,-490.74440769,0.00013972,2]
[382710982,1756716650981,-13.85599779,0.00013972,2]
[382710983,1756716650993,-466.14400221,0.00013972,2]
[382710984,1756716651003,-151.0,0.00013972,2]
[382710985,1756716651012,-528.22,0.00014003,2]
[382710986,1756716651023,-152.105409,0.00014178,2]
[382710987,1756716651033,-231.98881136,0.00014246,2]
[382710988,1756716651044,-248.01118864,0.00014246,2]
[382710989,1756716651054,-64.99927234,0.00014277,2]
[382710990,1756716651063,-480.0,0.00014277,2]
[382710991,1756716651072,-480.0,0.00014277,2]
[382710992,1756716651082,-480.0,0.00014277,2]
[382710993,1756716651093,-480.0,0.00014277,2]
[382710994,1756716651104,-480.0,0.00014277,2]
[382710995,1756716651114,-480.0,0.00014277,2]
[382710996,1756716651123,-480.0,0.00014277,2]
[382710997,1756716651133,-829.03,0.00014277,2]
[382710998,1756716651143,-480.0,0.00014277,2]
[382710999,1756716651154,-480.0,0.00014277,2]
[382711000,1756716651164,-480.0,0.00014277,2]
[382711001,1756716651173,-279.23289407,0.00014277,2]
[382711002,1756716651183,-480.0,0.00014277,2]
[382711003,1756716651192,-482.26617379,0.00014277,2]
[382711004,1756716651202,-480.0,0.00014277,2]
[382711005,1756716651214,-503.94,0.00014277,2]
[382711006,1756716651225,-480.0,0.00014277,2]
[382711007,1756716651236,-480.0,0.00014277,2]
[382711008,1756716651246,-268.54,0.00014277,2]
[382711009,1756716651257,-604.72,0.00014277,2]
[382711010,1756716651266,-480.0,0.00014277,2]
[382711011,1756716651277,-495.92515956,0.00014277,2]
[382711012,1756716651286,-480.0,0.00014277,2]
[382711013,1756716651296,-480.0,0.00014277,2]
[382711014,1756716651305,-480.0,0.00014277,2]
[382711015,1756716651314,-480.0,0.00014277,2]
[382711016,1756716651324,-151.0,0.00014277,2]
[382711017,1756716651334,-151.0,0.00014277,2]
[382711018,1756716651343,-151.0,0.00014277,2]
[382711019,1756716651353,-151.0,0.00014277,2]
[382711020,1756716651362,-151.0,0.00014277,2]
[382711021,1756716651373,-480.0,0.00014277,2]
[382711022,1756716651382,-480.0,0.00014277,2]
[382711023,1756716651391,-480.0,0.00014277,2]
[382711024,1756716651401,-480.0,0.00014277,2]
[382711025,1756716651411,-480.0,0.00014277,2]
[382711026,1756716651420,-480.0,0.00014277,2]
[382711027,1756716651430,-825.69,0.00014277,2]
[382711028,1756716651440,-480.0,0.00014277,2]
[382711029,1756716651450,-480.0,0.00014277,2]
[382711030,1756716651460,-480.0,0.00014277,2]
[382711031,1756716651469,-480.0,0.00014277,2]
[382711032,1756716651478,-151.0,0.00014277,2]
[382711033,1756716651487,-151.0,0.00014277,2]
[382711034,1756716651496,-156.5779417,0.00014277,2]
[382711035,1756716651506,-480.0,0.00014277,2]
[382711036,1756716651515,-151.0,0.00014277,2]
[382711037,1756716651529,-480.0,0.00014277,2]
[382711038,1756716651537,-480.0,0.00014277,2]
[382711039,1756716651546,-480.0,0.00014277,2]
[382711040,1756716651555,-480.0,0.00014277,2]
[382711041,1756716651563,-719.41,0.00014277,2]
[382711042,1756716651571,-663.72,0.00014277,2]
[382711043,1756716651581,-480.0,0.00014277,2]
[382711044,1756716651591,-480.0,0.00014277,2]
[382711045,1756716651600,-480.0,0.00014277,2]
[382711046,1756716651608,-480.0,0.00014277,2]
[382711047,1756716651617,-151.0,0.00014277,2]
[382711048,1756716651627,-480.0,0.00014277,2]
[382711049,1756716651635,-151.0,0.00014277,2]
[382711050,1756716651645,-1096.0,0.00014277,2]
[382711051,1756716651653,-480.0,0.00014277,2]
[382711052,1756716651661,-480.0,0.00014277,2]
[382711053,1756716651671,-151.0,0.00014277,2]
[382711054,1756716651679,-500.0,0.00014277,2]
[382711055,1756716651688,-151.0,0.00014277,2]
[382711056,1756716651696,-497.93,0.00014277,2]
[382711057,1756716651705,-1004.17,0.00014277,2]
[382711058,1756716651714,-480.0,0.00014277,2]
[382711059,1756716651722,-480.0,0.00014277,2]
[382711060,1756716651731,-480.0,0.00014278,2]
[382711061,1756716651740,-480.0,0.00014278,2]
[382711062,1756716651748,-480.0,0.00014278,2]
[382711063,1756716651756,-480.0,0.00014278,2]
[382711064,1756716651764,-307.9810294,0.00014278,2]
[382711065,1756716651776,-492.29,0.00014278,2]
[382711066,1756716651785,-480.0,0.00014278,2]
[382711067,1756716651793,-480.0,0.00014278,2]
[382711068,1756716651802,-151.0,0.000143,2]
[382711069,1756716651810,-538.0,0.00014342,2]
[382711070,1756716651819,-3475.12270044,0.00014352,2]
[382711071,1756716651828,-538.0,0.00014384,2]
[382711072,1756716651836,-538.0,0.00014388,2]
[382711073,1756716651845,-151.0,0.000144,2]
[382711074,1756716651853,-538.0,0.00014421,2]
[382711075,1756716651862,-500.0,0.00014424,2]
[382711076,1756716651870,-500.0,0.00014424,2]
[382711077,1756716651878,-500.0,0.00014424,2]
[382711078,1756716651887,-252.53007301,0.00014424,2]
[382711079,1756716651895,-500.0,0.00014424,2]
[382711080,1756716651903,-500.0,0.00014424,2]
[382711081,1756716651911,-500.0,0.00014424,2]
[382711082,1756716651919,-502.36447935,0.00014424,2]
[382711083,1756716651927,-253.8454926,0.00014424,2]
[382711084,1756716651936,-500.0,0.00014424,2]
[382711085,1756716651944,-198.3064311,0.00014424,2]
[382711086,1756716685700,-1502.97,0.00013561,2]
[382711087,1756716685728,-480.0,0.00013698,2]
[382711088,1756716685756,-1022.97,0.00013698,2]
[382711089,1756716685787,-480.0,0.00013698,2]
[382711090,1756716685816,-480.0,0.00013698,2]
[382711091,1756716685846,-480.0,0.00013698,2]
[382711092,1756716685873,-310.72329907,0.00013698,2]
[382711093,1756716685902,-6.68340186,0.00013698,2]
[382711094,1756716686040,-473.31659814,0.00013698,2]
[382711095,1756716686071,-480.0,0.00013698,2]
[382711096,1756716686100,-480.0,0.00013698,2]
[382711097,1756716686131,-4000.72,0.00013698,2]
[382711098,1756716686210,-78.57,0.00013698,2]
[382711099,1756716686244,-460.01,0.00013698,2]
[382711100,1756716686275,-480.0,0.00013698,2]
[382711101,1756716686307,-1423.2,0.00013698,2]
[382711102,1756716686338,-579.4,0.00013698,2]
[382711103,1756716688213,480.36,0.00013698,2]
[382711104,1756716691332,756.88,0.00013698,2]
[382711105,1756716692692,480.0,0.00013698,2]
[382711106,1756716699874,480.0,0.00013698,2]
[382711107,1756716699903,1192.49,0.00013698,2]
[382711108,1756716702786,480.0,0.00013698,2]
[382711109,1756716703590,245.06,0.00013698,2]
[382711110,1756716703615,621.48,0.00013698,2]
[382711111,1756716704010,480.0,0.00013698,2]
[382711113,1756716709813,480.0,0.00013698,2]
[382711114,1756716710950,6204.54,0.00013765,2]
[382711115,1756716712074,424.99137622,0.00013698,2]
[382711116,1756716712451,994.44,0.00013698,2]
[382711117,1756716714256,480.0,0.00013698,2]
[382711118,1756716716462,314.55862378,0.00013698,2]
[382711119,1756716716485,182.79137622,0.00013698,2]
[382711120,1756716718251,1243.36,0.00013698,2]
[382711121,1756716720017,480.0,0.00013698,2]
[382711122,1756716722791,518.00322405,0.00013698,2]
[382711123,1756716723257,3699.28,0.00013698,2]
[382711124,1756716724701,758.65,0.00013698,2]
[382711125,1756716726328,480.0,0.00013698,2]
[382711126,1756716726948,480.0,0.00013698,2]
[382711127,1756716729353,502.07,0.00013698,2]
[382711128,1756716732183,699.99,0.00013698,2]
[382711129,1756716736189,300.0,0.00013764,2]
[382711130,1756716740603,480.0,0.00013698,2]
[382711131,1756716744529,175.86539973,0.00013733,2]
[382711132,1756716744552,101.20793965,0.00013733,2]
[382711133,1756716746777,1444.45,0.00013698,2]
[382711134,1756716747214,480.0,0.00013698,2]
[382711135,1756716753396,480.0,0.00013698,2]
[382711136,1756716755329,480.0,0.00013698,2]
[382711137,1756716755690,833.65,0.00013698,2]
[382711138,1756716759072,480.0,0.00013698,2]
[382711139,1756716759621,510.89,0.00013698,2]
[382711140,1756716761472,8750.81419251,0.00013733,2]
[382711141,1756716765453,258.30580749,0.00013698,2]
[382711142,1756716765474,221.69419251,0.00013698,2]
[382711143,1756716767078,480.0,0.00013698,2]
[382711144,1756716768376,614.75,0.00013698,2]
[382711145,1756716768416,480.0,0.00013698,2]
[382711146,1756716768559,480.0,0.00013698,2]
[382711147,1756716768756,480.0,0.00013698,2]
[382711148,1756716771543,480.0,0.00013698,2]
[382711149,1756716773376,480.0,0.00013698,2]
[382711150,1756716776759,741.02,0.00013698,2]
[382711151,1756716776938,480.0,0.00013698,2]
[382711152,1756716777865,480.0,0.00013698,2]
[382711153,1756716778006,4019.88,0.00013698,2]
[382711154,1756716782478,480.0,0.00013698,2]
[382711155,1756716786603,304.36,0.00013733,2]
[382711156,1756716786628,8446.45419251,0.00013733,2]
[382711157,1756716789219,480.0,0.00013698,2]
[382711158,1756716790666,480.0,0.00013698,2]
[382711159,1756716792311,593.55580749,0.00012729,2]
[382711160,1756716792334,10000.01,0.00012729,2]
[382711161,1756716792355,10000.01,0.00012729,2]
[382711162,1756716792378,10000.01,0.00012729,2]
[382711163,1756716792404,10000.01,0.00012729,2]
[382711164,1756716792427,10000.01,0.00012729,2]
[382711165,1756716792450,10000.01,0.00012729,2]
[382711166,1756716792474,10000.01,0.00012729,2]
[382711167,1756716792498,10000.01,0.00012729,2]
[382711168,1756716792522,10000.01,0.00012729,2]
[382711169,1756716792549,10000.01,0.00012729,2]
[382711170,1756716792571,10000.01,0.00012729,2]
[382711171,1756716792593,10000.01,0.00012729,2]
[382711172,1756716792614,10000.01,0.00012729,2]
[382711173,1756716792641,10000.01,0.00012729,2]
[382711174,1756716792665,10000.01,0.00012729,2]
[382711181,1756716828008,-1844.21786784,0.00012476,2]
[382711182,1756716828243,-1644.22786784,0.00012476,2]
[382711183,1756716828267,-6711.55426432,0.00012476,2]
[382711184,1756716828534,-10000.01,0.00012602,2]
[382711185,1756716838188,-10000.01,0.00012602,2]
[382711186,1756716838481,-10000.01,0.00012602,2]
[382711187,1756716838739,-10000.01,0.00012602,2]
[382711188,1756716838987,-10000.01,0.00012602,2]
[382711189,1756716839300,-10000.01,0.00012602,2]
[382711190,1756716839596,-10000.01,0.00012602,2]
[382711191,1756716839820,-10000.01,0.00012602,2]
[382711192,1756716840432,-10000.01,0.00012602,2]
[382711193,1756716840718,-10000.01,0.00012602,2]
[382711194,1756716840991,-10000.01,0.00012602,2]
[382711195,1756716846158,-300.0,0.00012601,2]
[382711196,1756716846196,-9400.01,0.00012602,2]
[382711197,1756716846436,-10000.01,0.00012602,2]
[382711198,1756716846716,-10000.01,0.00012602,2]
[382711199,1756716847015,-1292.97074909,0.00012602,2]
[382711200,1756716847045,-300.0,0.00012725,2]
[382711201,1756716847082,-300.0,0.00012725,2]
[382711202,1756716847113,-300.0,0.00012725,2]
[382711203,1756716847147,-300.0,0.00012725,2]
[382711204,1756716847182,-300.0,0.00012725,2]
[382711205,1756716847222,-300.0,0.00012725,2]
[382711206,1756716847260,-300.0,0.00012725,2]
[382711207,1756716847301,-300.0,0.00012725,2]
[382711208,1756716847340,-300.0,0.00012725,2]
[382711209,1756716847377,-300.0,0.00012725,2]
[382711210,1756716847410,-300.0,0.00012725,2]
[382711211,1756716847442,-300.0,0.00012725,2]
[382711212,1756716847640,-300.0,0.00012725,2]
[382711213,1756716847674,-300.0,0.00012725,2]
[382711214,1756716847710,-300.0,0.00012725,2]
[382711215,1756716848151,-214.06850182,0.00012729,2]
[382711216,1756716848166,-8200.01,0.00012729,2]
[382711217,1756716848190,-10000.01,0.00012729,2]
[382711218,1756716848333,-10000.01,0.00012729,2]
[382711219,1756716848357,-10000.01,0.00012729,2]
[382711220,1756716848514,-10000.01,0.00012729,2]
[382711221,1756716848757,-10000.01,0.00012729,2]
[382711223,1756716866358,-10000.01,0.00012602,2]
[382711224,1756716866645,-10000.01,0.00012602,2]
[382711225,1756716867067,-1110.09,0.00012329,2]
[382711226,1756716867116,-7779.83,0.00012602,2]
[382711227,1756716867325,-2118.60492869,0.00012602,2]
[382711228,1756716867366,-5762.80014262,0.00012729,2]
[382711229,1756716867605,-10000.01,0.00012729,2]
[382711230,1756716867927,-10000.01,0.00012729,2]
[382711231,1756716868179,-10000.01,0.00012476,2]
[382711232,1756716868459,-2097.54009955,0.00012476,2]
[382711233,1756716868486,-5804.9298009,0.00012476,2]
[382711234,1756716868735,-10000.01,0.00012729,2]
[382711235,1756716869119,-10000.01,0.00012729,2]
[382711236,1756716896350,-2058.59,0.00012205,2]
[382711237,1756716896378,-1038.14,0.00012329,2]
[382711238,1756716896407,-1020.45,0.00012329,2]
[382711239,1756716896438,-500.0,0.00012728,2]
[382711240,1756716896468,-320.96434405,0.00012728,2]
[382711241,1756716896555,-123.7213119,0.00012728,2]
[382711242,1756716896635,-500.0,0.00012728,2]
[382711243,1756716896666,-500.0,0.00012728,2]
[382711244,1756716896697,-500.0,0.00012728,2]
[382711245,1756716896726,-500.0,0.00012728,2]
[382711246,1756716896813,-6000.01,0.00012729,2]
[382711247,1756716896892,-10000.01,0.00012729,2]
[382711248,1756716897177,-10000.01,0.00012729,2]
[382711249,1756716897470,-10000.01,0.00012729,2]
[382711250,1756716897733,-10000.01,0.00012729,2]
[382711251,1756716898006,-10000.01,0.00012729,2]
[382711252,1756716898256,-10000.01,0.00012729,2]
[382711253,1756716898520,-850.37,0.00012329,2]
[382711254,1756716898560,-8299.27,0.00012729,2]
[382711255,1756716898791,-10000.01,0.00012729,2]
[382711256,1756716906377,-300.0,0.00012728,2]
[382711257,1756716906442,-9400.01,0.00012729,2]
[382711258,1756716906833,-10000.01,0.00012729,2]
[382711259,1756716906925,-10000.01,0.00012729,2]
[382711260,1756716907215,-1529.94554807,0.00012729,2]
[382711261,1756716907286,-600.0,0.00012853,2]
[382711262,1756716907329,-177.5002998,0.00012947,2]
[382711263,1756716907361,-327.306122,0.00013243,2]
[382711264,1756716907391,-159.99477124,0.00013441,2]
[382711265,1756716907418,-480.0,0.00013698,2]
[382711266,1756716907454,-480.0,0.00013698,2]
[382711267,1756716907481,-480.0,0.00013698,2]
[382711268,1756716907512,-480.0,0.00013698,2]
[382711269,1756716907829,-1257.82,0.00013698,2]
[382711270,1756716907859,-480.0,0.00013698,2]
[382711271,1756716907893,-2782.06,0.00013698,2]
[382711272,1756716907937,-278.57,0.00013698,2]
[382711273,1756716908033,-403.11,0.00013698,2]
[382711274,1756716908070,-480.0,0.00013698,2]
[382711275,1756716908117,-479.83426198,0.00013698,2]
[382711276,1756716908147,-1079.01,0.00013698,2]
[382711277,1756716908177,-2518.37,0.00013698,2]
[382711278,1756716908436,-659.05,0.00013698,2]
[382711279,1756716908467,-480.0,0.00013698,2]
[382711280,1756716908500,-1123.73,0.00013698,2]
[382711281,1756716908530,-681.42,0.00013698,2]
[382711282,1756716908559,-480.0,0.00013698,2]
[382711283,1756716908589,-480.0,0.00013698,2]
[382711284,1756716908618,-480.0,0.00013698,2]
[382711285,1756716908650,-491.17,0.00013698,2]
[382711286,1756716908854,-1538.95,0.00013698,2]
[382711287,1756716908883,-728.19,0.00013698,2]
[382711288,1756716908912,-833.53,0.00013698,2]
[382711289,1756716908942,-1088.12,0.00013698,2]
[382711290,1756716908973,-480.0,0.00013698,2]
[382711291,1756716909004,-182.43,0.00013698,2]
[382711292,1756716909277,-297.57,0.00013698,2]
[382711293,1756716909304,-480.0,0.00013698,2]
[382711294,1756716909333,-484.85329817,0.00013698,2]
[382711295,1756716909360,-611.43,0.00013698,2]
[382711296,1756716909388,-480.0,0.00013698,2]
[382711297,1756716909417,-480.0,0.00013698,2]
[382711298,1756716909445,-480.0,0.00013698,2]
[382711299,1756716909475,-480.0,0.00013698,2]
[382711300,1756716909508,-702.96,0.00013698,2]
[382711301,1756716909537,-480.0,0.00013698,2]
[382711302,1756716909803,-708.64,0.00012329,2]
[382711303,1756716909833,-901.32,0.00013698,2]
[382711304,1756716909861,-480.0,0.00013698,2]
[382711305,1756716909890,-480.0,0.00013698,2]
[382711306,1756716909918,-480.0,0.00013698,2]
[382711307,1756716909945,-462.05752525,0.00013698,2]
[382711308,1756716909973,-480.0,0.00013698,2]
[382711309,1756716910156,-480.0,0.00013698,2]
[382711310,1756716910184,-254.7549495,0.00013698,2]
[382711311,1756716910798,-462.05752525,0.00013698,2]
[382711312,1756716910811,-84.40752525,0.00013698,2]
[382711313,1756716910821,-395.59247475,0.00013698,2]
[382711314,1756716910834,-480.0,0.00013698,2]
[382711315,1756716910963,-46.60752525,0.00013698,2]
[382711316,1756716910972,-480.0,0.00013698,2]
[382711317,1756716910986,-274.61247475,0.00013698,2]
[382711318,1756716916514,-189.07520462,0.00013306,2]
[382711319,1756716916542,-189.07520462,0.00013441,2]
[382711320,1756716916575,-597.18752525,0.00013698,2]
[382711321,1756716916603,-480.0,0.00013698,2]
[382711322,1756716916631,-480.0,0.00013698,2]
[382711323,1756716916664,-480.0,0.00013698,2]
[382711324,1756716916692,-480.0,0.00013698,2]
[382711325,1756716916720,-480.0,0.00013698,2]
[382711326,1756716916750,-480.0,0.00013698,2]
[382711327,1756716916777,-480.0,0.00013698,2]
[382711328,1756716916806,-480.0,0.00013698,2]
[382711329,1756716916998,-508.25,0.00013698,2]
[382711330,1756716917030,-1968.09,0.00013698,2]
[382711331,1756716917060,-480.0,0.00013698,2]
[382711332,1756716917090,-912.43,0.00013698,2]
[382711333,1756716917303,-480.0,0.00013698,2]
[382711334,1756716917459,-3712.94,0.00013698,2]
[382711335,1756716917487,-480.0,0.00013698,2]